[Event "Uppsala GM June 2022"]
[Site "Uppsala"]
[Date "2022.06.15"]
[Round "4.3"]
[White "Roshka, Yevgeniy"]
[Black "Chatalbashev, Boris"]
[Result "1-0"]
[ECO "E60"]
[WhiteElo "2468"]
[BlackElo "2536"]
[Annotator "TA"]
[PlyCount "71"]
[EventDate "2022.06.09"]
[EventType "tourn"]
[EventCountry "SWE"]
[SourceTitle "playchess.com"]
[Source "ChessBase"]
[SourceQuality "1"]
[TimeControl "5400+30"]

{[%evp 9,71,0,4,4,15,9,11,18,43,12,33,6,25,21,70,19,28,36,116,120,122,-20,-17,0,0,0,0,-89,-87,-76,-71,-75,-74,-82,0,12,47,0,39,39,39,33,59,53,117,29,213,201,323,335,553,592,580,582,608,545,688,662,29985,29986,29991,29992,29992,29993]} 1. d4 {[%emt 0:00:01]} Nf6 {[%emt 0:00:06]} 2. c4 {[%emt 0:00:04]} g6 {[%emt 0:00:06]} 3. h4 {[%emt 1:31:55]} c5 {[%emt 0:00:42]} 4. d5 {[%emt 0:00:00]} d6 {[%emt 0:02:17]} 5. Nc3 {[%emt 0:00:00]} Bg7 {[%emt 0:00:06]} 6. e4 {[%emt 0:00:00] E60: King's Indian: Unusual lines and Fianchetto Variation without Nc3.} e6 {[%emt 0:01:51]} 7. Be2 {[%emt 0:00:00]} exd5 {[%emt 0:01:19]} 8. exd5 {[%emt 0:00:00] The position is equal.} Qe7 {[%emt 0:00:50]} 9. Kf1 {[%emt 0:00:00] [#]} Nbd7 $146 {[%emt 0:08:02]} ({Predecessor:} 9... O-O 10. h5 Ne4 11. Nxe4 Qxe4 12. Nh3 Bxh3 13. Rxh3 Nd7 14. Qb3 Rfe8 15. Be3 Rab8 {½-½ (50) Shabalov,A (2496)-Valdes Romero,L (2402) Charlotte 2021}) 10. h5 {[%emt 0:00:00]} Nxh5 {[%emt 0:04:25]} 11. Bxh5 {[%emt 0:00:00]} gxh5 {[%emt 0:00:06]} (11... Bxc3 $11 12. bxc3 gxh5) 12. Qxh5 {[%emt 0:00:00]} (12. Rxh5 Bxc3 13. bxc3 Ne5 $11) (12. Bd2 $14) 12... Bxc3 $11 {[%emt 0:07:55]} 13. bxc3 {[%emt 0:00:00] Strongly threatening Bg5.} Nf6 {[%emt 0:00:22]} (13... Qe4 $1 $14) 14. Qh4 $1 $16 {[%emt 0:00:00]} Bf5 {[%emt 0:01:16] Hoping for ...Bd3+.} 15. f3 {[%emt 0:00:00]} ({White has to play} 15. Nf3 $16 {Bg5 is the strong threat.} Ne4 16. Bf4) 15... O-O-O $36 {[%emt 0:25:43][%mdl 2048] Black is more active.} (15... Bd3+ 16. Kf2 Kd7 17. Bg5 $16) 16. Bg5 {[%emt 0:00:00]} Bd3+ {[%emt 0:05:53]} 17. Kf2 {[%emt 0:00:00]} Rde8 {[%emt 0:00:08][%cal Oh8g8] And now ...Rhg8! would win.} 18. Qf4 {[%emt 0:00:00]} ({Don't go for} 18. Bxf6 $2 Qe3+ 19. Kg3 Rhg8+ 20. Kh2 Rxg2+ $3 {[%mdl 512]} 21. Kxg2 Rg8+ 22. Bg5 (22. Kh3 Bf5+) 22... Rxg5+ 23. Qxg5 (23. Kh3 Bf5+ 24. Kh2 Qd2+) 23... Qxg5+ 24. Kf2 Qd2+ 25. Kg3 Bxc4 $19) (18. g4 $11 Ne4+ 19. fxe4 Qxe4 20. Nf3) 18... Rhg8 $17 {[%emt 0:00:49][%cal Og8g5] aiming for ...Rxg5!} 19. Qxf6 {[%emt 0:00:00]} Rxg5 {[%emt 0:00:15][%csl Ge8][%cal Re7e3]} 20. Qxe7 {[%emt 0:00:00]} Rxe7 {[%emt 0:00:05]} 21. Rh4 {[%emt 0:00:00] [#]} b5 {[%emt 0:05:40]} (21... Rge5 $1 $17) 22. cxb5 $11 {[%emt 0:00:00]} c4 {[%emt 0:00:55]} 23. Rd4 {[%emt 0:00:00]} (23. a4 $14) 23... f5 {[%emt 0:08:28]} 24. g3 {[%emt 0:00:00]} Kb7 {[%emt 0:00:05]} 25. a4 {[%emt 0:00:00]} Kb6 {[%emt 0:00:21]} 26. Ra2 {[%emt 0:00:00]} Kc5 {[%emt 0:04:06]} (26... Reg7 $14 27. Ne2 Rh5) 27. Rb2 {[%emt 0:00:00]} ({White should play} 27. Nh3 $16 Rh5 28. Rh4 (28. Kg2 Re1 $14) 28... Rxh4 29. gxh4) 27... Kb6 $2 {[%emt 0:03:01] [#] Loses the game.} (27... Rh5 $1 $11 28. Kg2 Kb6) 28. Nh3 $1 $18 {[%emt 0:00:00] The board is on fire.} Rg6 {[%emt 0:02:47]} (28... Rh5 $142) 29. Rh4 {[%emt 0:00:00]} ({Not} 29. Nf4 Rh6 $14) 29... Reg7 $2 {[%emt 0:00:37]} (29... h5 30. Rxh5 Rgg7) 30. Nf4 {[%emt 0:00:00]} ({Less strong is} 30. a5+ Kxa5 31. Nf4 Rxg3 $16) 30... Rxg3 {[%emt 0:00:09]} 31. Rh6 {[%emt 0:00:00]} Rg1 {[%emt 0:02:36]} 32. Rxd6+ {[%emt 0:00:00]} Kb7 {[%emt 0:00:01]} 33. b6 {[%emt 0:00:00][%cal Bb5b6,Bb6b7][%mdl 32]} Ra1 {[%emt 0:03:56]} 34. Ne6 {[%emt 0:00:00] White mates.} Rg8 {[%emt 0:04:16]} 35. Nc5+ {[%emt 0:01:08]} Kb8 {[%emt 0:00:11]} 36. b7 {[%emt 0:00:25] Weighted Error Value: White=0.20 (precise) /Black=0.59} 1-0

[Event "Uppsala GM June 2022"]
[Site "Uppsala"]
[Date "2022.06.15"]
[Round "4.4"]
[White "Falkevall, Axel"]
[Black "Sorensen, Hampus"]
[Result "1/2-1/2"]
[ECO "B22"]
[WhiteElo "2290"]
[BlackElo "2372"]
[Annotator "TA"]
[PlyCount "82"]
[EventDate "2022.06.09"]
[EventType "tourn"]
[EventCountry "SWE"]
[SourceTitle "playchess.com"]
[Source "ChessBase"]
[SourceQuality "1"]
[TimeControl "5400+30"]

{[%evp 18,82,34,28,59,45,39,32,54,29,31,25,34,21,46,45,54,43,50,46,53,23,103,103,106,0,10,9,8,0,4,0,0,0,11,19,24,14,14,0,0,10,13,17,12,0,20,12,27,16,14,0,0,-2,0,0,0,0,0,0,0,0,0,0,0,0,17]} 1. e4 {[%emt 1:31:00]} c5 {[%emt 0:01:17]} 2. c3 {[%emt 0:00:00]} Nf6 {[%emt 0:00:22]} 3. e5 {[%emt 0:00:00]} Nd5 {[%emt 0:00:05]} 4. d4 {[%emt 0:00:00]} cxd4 {[%emt 0:00:31]} 5. Nf3 {[%emt 0:00:00]} Nc6 {[%emt 0:00:32]} 6. Bc4 {[%emt 0:00:00]} e6 {[%emt 0:07:01]} 7. cxd4 {[%emt 0:00:00]} d6 {[%emt 0:00:11]} 8. O-O {[%emt 0:00:00]} dxe5 {[%emt 0:00:18]} 9. dxe5 {[%emt 0:00:00]} Be7 {[%emt 0:00:12]} 10. Qe2 {[%emt 0:00:00]} Nb6 {[%emt 0:02:08] B22: Sicilian: 2 c3.} 11. Bd3 {[%emt 0:00:00]} Nb4 {[%emt 0:05:35]} 12. Be4 {[%emt 0:00:00]} N4d5 {[%emt 0:00:24] White is slightly better.} 13. Rd1 {[%emt 0:00:00]} Bd7 {[%emt 0:01:05]} 14. Bd2 {[%emt 0:00:00]} Bc6 {[%emt 0:05:05]} 15. Nd4 {[%emt 0:00:00] [#]} Qc7 $146 {[%emt 0:03:07]} ({Predecessor:} 15... Rc8 16. Nxc6 bxc6 17. Qg4 g6 18. Bh6 Qc7 19. Qg3 Nd7 20. Nd2 f5 21. exf6 Qxg3 22. hxg3 N7xf6 {1-0 (86) Strange,M (2322)-Eriksson,C (2151) Copenhagen 2012}) 16. Nxc6 {[%emt 0:00:00]} bxc6 {[%emt 0:00:57]} 17. Nc3 {[%emt 0:00:00]} Nd7 {[%emt 0:04:31]} 18. Bxd5 {[%emt 0:00:00]} exd5 {[%emt 0:12:28]} 19. Qg4 {[%emt 0:00:00]} (19. Rac1 $5 {[%cal Rc3d5]} Qxe5 20. Qa6 $14) 19... Nxe5 {[%emt 0:02:58]} (19... Qxe5 $2 20. Re1 h5 21. Qxd7+ $3 {[%mdl 512]} (21. Rxe5 hxg4 22. Ree1 Nc5 $17) 21... Kxd7 22. Rxe5 $18) (19... h5 $11 {keeps the balance.} 20. Qxg7 Qxe5) 20. Qxg7 $16 {[%emt 0:00:00]} O-O-O {[%emt 0:00:22][%cal Oe5f3] [#]} 21. Qg3 {[%emt 0:00:00] Prevents Nf3+.} (21. Nxd5 $1 $16 {[%mdl 512]} cxd5 (21... Rhg8 22. Nxe7+) 22. Rac1) 21... Rhg8 $11 {[%emt 0:02:47]} 22. Qh3+ {[%emt 0:00:00]} Qd7 {[%emt 0:04:50] ( -> ...Qxh3)} 23. Qxd7+ {[%emt 0:00:00]} Rxd7 {[%emt 0:00:10]} 24. Bf4 {[%emt 0:00:00]} Ng6 {[%emt 0:05:35]} 25. Bg3 {[%emt 0:00:00]} Nf8 {[%emt 0:06:06]} 26. Rac1 {[%emt 0:00:00] And now Nxd5 would win.} Kb7 {[%emt 0:00:25]} 27. Ne2 {[%emt 0:00:00]} Ne6 {[%emt 0:02:55]} 28. Rd3 {[%emt 0:00:00]} (28. Rc3 {seems wilder.} Rg4 29. b3 h5 30. h3) 28... c5 {[%emt 0:01:52]} 29. Kf1 {[%emt 0:00:00]} Rc8 {[%emt 0:03:53]} 30. b3 {[%emt 0:00:00]} Bf6 {[%emt 0:04:09]} 31. Rcd1 {[%emt 0:00:38]} Kc6 {[%emt 0:01:19]} 32. Rf3 {[%emt 0:00:41]} Bh8 {[%emt 0:00:39]} 33. Rf5 {[%emt 0:01:05]} a5 {[%emt 0:04:02] The position is equal.} 34. Be5 {[%emt 0:02:17]} Bxe5 {[%emt 0:00:14]} 35. Rxe5 {[%emt 0:00:04]} a4 {[%emt 0:00:13]} 36. Rh5 {[%emt 0:05:41]} axb3 {[%emt 0:00:21]} 37. axb3 {[%emt 0:00:04]} Rb8 {[%emt 0:00:15]} 38. Nc1 {[%emt 0:00:42]} c4 {[%emt 0:07:27]} 39. bxc4 {[%emt 0:02:33]} dxc4 {[%emt 0:00:05]} 40. Rxd7 {[%emt 0:00:08]} Kxd7 {[%emt 0:00:01]} 41. Rh4 {[%emt 0:00:13]} Rb4 {[%emt 0:02:09] Weighted Error Value: White=0.10 (very precise) /Black=0.07 (flawless)} 1/2-1/2

[Event "Uppsala GM June 2022"]
[Site "Uppsala"]
[Date "2022.06.15"]
[Round "4.5"]
[White "Peng, Li Min"]
[Black "Larkin, Vladyslav"]
[Result "1/2-1/2"]
[ECO "C42"]
[WhiteElo "2506"]
[BlackElo "2430"]
[Annotator "TA"]
[PlyCount "84"]
[EventDate "2022.06.09"]
[EventType "tourn"]
[EventCountry "SWE"]
[SourceTitle "playchess.com"]
[Source "ChessBase"]
[SourceQuality "1"]
[TimeControl "5400+30"]

{[%evp 19,84,6,11,17,6,14,48,45,58,51,47,41,49,37,70,2,111,95,89,79,70,78,110,110,106,110,100,95,180,122,121,127,187,186,192,195,227,196,193,192,364,211,172,0,367,122,131,0,352,252,261,262,264,269,266,181,279,261,279,279,279,281,231,0,0,0,235]} 1. e4 {[%emt 0:00:07]} e5 {[%emt 0:00:20]} 2. Nf3 {[%emt 0:00:21]} Nf6 {[%emt 0:00:07]} 3. Nc3 {[%emt 0:00:10]} Bb4 {[%emt 0:00:48]} 4. Nxe5 {[%emt 0:00:09]} O-O {[%emt 0:00:04]} 5. Be2 {[%emt 0:00:05]} Re8 {[%emt 0:00:05]} 6. Nd3 {[%emt 0:00:04]} Bxc3 {[%emt 0:00:07]} 7. dxc3 {[%emt 0:00:04]} Nxe4 {[%emt 0:00:07]} 8. O-O {[%emt 0:00:08]} d5 {[%emt 0:00:44]} 9. Nf4 {[%emt 0:00:06]} c6 {[%emt 0:00:05]} 10. Be3 {[%emt 0:00:04]} Nd7 {[%emt 0:00:32]} 11. c4 {[%emt 0:00:08] C42: Petroff Defence: 3 Nxe5 and unusual White 3rd moves.} dxc4 {[%emt 0:00:10]} 12. Bxc4 {[%emt 0:00:05]} Ne5 {[%emt 0:00:47] Pair of Knights!} 13. Qxd8 {[%emt 0:00:14] White is slightly better.} Rxd8 {[%emt 0:00:04]} 14. Bb3 {[%emt 0:00:21]} Bf5 {[%emt 1:33:30]} 15. Rad1 {[%emt 0:00:58]} b6 {[%emt 0:00:00] [#]} 16. f3 $146 {[%emt 0:00:09]} ({Predecessor:} 16. Bd4 Nd7 17. g4 Bg6 18. h4 Nec5 19. Nxg6 hxg6 20. Bc4 Ne6 21. Bc3 Nf6 22. f3 Rxd1 23. Rxd1 {1-0 (30) Vorobjov,D (2225)-Slavinsky,P (2273) Moscow 2015}) 16... Nd6 {[%emt 0:00:00]} 17. g4 {[%emt 0:01:34]} (17. Rfe1 $14) 17... Bg6 {[%emt 0:00:00]} (17... Nxf3+ $11 18. Rxf3 Bxg4) 18. Nxg6 {[%emt 0:00:09]} Nxg6 {[%emt 0:00:00]} 19. Bg5 {[%emt 0:00:56]} Rd7 {[%emt 0:00:00]} 20. h4 {[%emt 0:00:55]} Nf8 {[%emt 0:00:00]} 21. Rfe1 $36 {[%emt 0:00:09][%mdl 2048] White is in control.} h6 {[%emt 0:00:00]} 22. Bf4 {[%emt 0:01:15] White is more active.} Re8 {[%emt 0:00:00]} 23. Bxd6 {[%emt 0:00:28]} Rxd6 {[%emt 0:00:00]} 24. Rxe8 {[%emt 0:00:06]} (24. Rxd6 $18 Rxe1+ 25. Kf2) 24... Rxd1+ $16 {[%emt 0:00:00][%mdl 4096] Endgame KRB-KRN} 25. Kf2 {[%emt 0:00:07]} Rd7 {[%emt 0:00:00] [#] Prevents Re7.} (25... g5 $16) 26. h5 $1 $18 {[%emt 0:00:53]} c5 {[%emt 0:00:00]} 27. a4 {[%emt 0:00:12]} a5 {[%emt 0:00:00]} 28. Kg3 {[%emt 0:01:28] Threatens to win with f4.} Rd4 {[%emt 0:00:00]} 29. Rc8 {[%emt 0:00:08] Hoping for f4.} Rd1 $2 {[%emt 0:00:00]} (29... Rd6 {is a better defense.} 30. f4 g6 31. hxg6 Rxg6) 30. Rc7 {[%emt 0:00:16]} (30. Kf4 $142) 30... Nd7 {[%emt 0:00:00]} 31. Rc8+ $2 {[%emt 0:00:05]} (31. f4) 31... Nf8 {[%emt 0:00:00]} 32. Rc6 {[%emt 0:00:13] Prevents Rd6.} (32. f4 $18) 32... Nd7 $16 {[%emt 0:00:00]} 33. Rc8+ $2 {[%emt 0:00:06]} (33. Bc4 $16) 33... Nf8 $18 {[%emt 0:00:00]} 34. Rb8 {[%emt 0:00:33]} Rd6 {[%emt 0:00:00] [#]} 35. f4 {[%emt 0:00:30][%cal Bf3f4,Bf4f5][%mdl 32]} g5 {[%emt 0:00:00]} 36. hxg6 {[%emt 0:00:03]} Rxg6 {[%emt 0:00:00]} 37. f5 {[%emt 0:00:21]} Rf6 {[%emt 0:00:00]} (37... Rc6 {was necessary.} 38. Bd5 Rd6) 38. Rb7 {[%emt 0:00:32]} Kg7 {[%emt 0:00:00]} 39. Kf4 {[%emt 0:00:17]} Ng6+ {[%emt 0:00:00]} 40. Ke4 {[%emt 0:00:01]} Nh4 {[%emt 0:00:00]} 41. Kf4 $2 {[%emt 0:02:29]} (41. Be6 $18) 41... Ng6+ $1 $11 {[%emt 0:00:00]} 42. Ke4 $2 {[%emt 0:00:04]} (42. Ke3 $11 c4 43. Ba2 (43. fxg6 cxb3 44. gxf7 bxc2 $11) (43. Bxc4 Ne5 $16)) 42... Nh4 {[%emt 0:14:00] Weighted Error Value: White=0.39/Black=0.23 (precise)} 1/2-1/2

[Event "Uppsala GM June 2022"]
[Site "Uppsala"]
[Date "2022.06.17"]
[Round "6.1"]
[White "Falkevall, Axel"]
[Black "Nilsson, Joakim"]
[Result "1/2-1/2"]
[ECO "B22"]
[WhiteElo "2290"]
[BlackElo "2237"]
[Annotator "TA"]
[PlyCount "150"]
[EventDate "2022.06.09"]
[EventType "tourn"]
[EventCountry "SWE"]
[SourceTitle "playchess.com"]
[Source "ChessBase"]
[SourceQuality "1"]
[TimeControl "5400+30"]

{[%evp 11,150,13,24,24,30,20,34,14,17,8,28,25,115,36,36,36,37,34,37,31,31,19,29,22,38,18,26,29,41,0,24,23,20,0,24,27,25,0,0,1,0,0,0,0,0,0,0,0,0,0,0,0,0,-57,0,-7,0,-33,-26,-25,0,0,0,0,0,0,0,0,0,0,0,0,0,0,0,0,0,0,0,0,0,0,0,0,0,0,0,0,0,-19,-23,-55,0,0,0,0,0,0,0,-118,-81,-147,-145,-140,-132,-1215,-1310,-2478,-2474,-2303,-731,-2162,-2087,-1831,-1699,-1465,0,-1377,-1375,-1100,-708,-662,-662,-710,-8,-8,-8,-8,-8,-8,0,0,0,0,0,0,0,0,0,0,0]} 1. e4 {[%emt 0:00:30]} c5 {[%emt 0:00:30]} 2. c3 {[%emt 0:00:30]} d5 {[%emt 0:00:30]} 3. exd5 {[%emt 0:00:30]} Qxd5 {[%emt 0:00:30]} 4. d4 {[%emt 0:00:30]} Nf6 {[%emt 0:00:30]} 5. Nf3 {[%emt 0:00:30]} Bg4 {[%emt 0:00:30]} 6. dxc5 {[%emt 0:00:30]} Qxc5 {[%emt 0:00:30]} 7. h3 {[%emt 0:00:30] B22: Sicilian: 2 c3.} Bh5 {[%emt 0:00:30]} 8. Na3 {[%emt 0:00:30]} e6 {[%emt 0:20:21]} 9. Be3 {[%emt 0:13:30] White is slightly better.} Qc8 {[%emt 0:01:59] [#]} 10. Nb5 $146 {[%emt 0:06:43]} ({Predecessor:} 10. g4 Bg6 11. Bg2 Bxa3 12. Qa4+ Nc6 13. Qxa3 Nd5 14. Bd2 Bf5 15. gxf5 {1-0 (15) Banawa,J (2404)-Tsvetkov,A (2358) Chess.com INT 2020}) 10... Bxf3 {[%emt 0:02:08]} 11. Qxf3 {[%emt 0:01:21]} Nc6 {[%emt 0:00:36]} (11... a6 $11) 12. Nd4 {[%emt 0:04:42]} (12. Qg3 $1 $16 Nd5 13. Bc4) 12... Be7 {[%emt 0:04:15]} 13. Nxc6 {[%emt 0:02:30]} bxc6 {[%emt 0:00:29]} 14. Bd3 {[%emt 0:01:35]} O-O {[%emt 0:01:17]} 15. O-O {[%emt 0:01:20]} Qb7 {[%emt 0:01:39]} 16. Rab1 {[%emt 0:08:49]} Rfd8 {[%emt 0:00:40]} 17. Qe2 {[%emt 0:03:07]} Rd7 {[%emt 0:01:50]} 18. c4 {[%emt 0:03:22][%cal Ob2b4]} Rad8 {[%emt 0:01:00]} 19. Rfd1 {[%emt 0:01:21]} Qa6 {[%emt 0:00:22]} 20. b3 {[%emt 0:01:25]} Qa5 {[%emt 0:01:39]} 21. Bc2 {[%emt 0:14:08][%cal Bd3c2,Bc2d1,Bd1f3][%mdl 32]} Bc5 {[%emt 0:09:19]} 22. Bf4 {[%emt 0:02:56]} Rxd1+ {[%emt 0:08:14]} 23. Rxd1 {[%emt 0:00:52]} Rxd1+ {[%emt 0:00:15]} 24. Bxd1 {[%emt 0:02:49]} Bd4 {[%emt 0:01:35]} 25. Kf1 {[%emt 0:05:52]} Qf5 {[%emt 0:02:00]} 26. Be3 {[%emt 0:07:10]} Bxe3 {[%emt 0:14:09]} 27. Qxe3 $11 {[%emt 0:01:04][%mdl 4096] Endgame KQB-KQN} c5 {[%emt 0:01:46]} 28. Qd2 {[%emt 0:02:24] Threatening mate with Qd8+.} g6 {[%emt 0:00:26]} 29. Bf3 {[%emt 0:02:37]} Qb1+ {[%emt 0:00:22]} 30. Ke2 {[%emt 0:00:42]} Kg7 {[%emt 0:01:47]} 31. Bc6 {[%emt 0:04:48]} h5 {[%emt 0:03:54]} 32. Qa5 {[%emt 0:02:37]} (32. g3 $11) 32... Qc2+ {[%emt 0:01:03]} (32... h4 $15) 33. Qd2 {[%emt 0:01:09]} Qf5 {[%emt 0:01:17]} 34. Qd3 {[%emt 0:00:45]} Qe5+ {[%emt 0:00:27]} 35. Qe3 {[%emt 0:00:17]} Qd6 {[%emt 0:00:37]} (35... Qa1 {seems wilder.} 36. a4 h4 37. Qxc5 Qa2+) 36. Bf3 {[%emt 0:00:21]} Nd7 {[%emt 0:06:28]} 37. Qc3+ {[%emt 0:00:56]} Kg8 {[%emt 0:00:52]} 38. Qd2 {[%emt 0:01:10]} Qe5+ {[%emt 0:00:34]} 39. Qe3 {[%emt 0:00:28]} Qa1 {[%emt 0:00:31]} 40. Qd2 {[%emt 0:00:27]} Ne5 {[%emt 0:00:37]} 41. Be4 {[%emt 0:00:43]} f5 {[%emt 0:02:15]} 42. Bb7 {[%emt 0:00:28]} Nf7 {[%emt 0:00:42]} 43. f4 {[%emt 0:00:57]} Kg7 {[%emt 0:00:43]} 44. Kf2 {[%emt 0:00:27]} Kf6 {[%emt 0:01:21]} 45. a4 {[%emt 0:01:20]} h4 {[%emt 0:01:56]} 46. Qe3 {[%emt 0:00:32]} Qb2+ {[%emt 0:01:39]} 47. Kg1 {[%emt 0:00:24]} Qa1+ {[%emt 0:00:59]} 48. Kf2 {[%emt 0:00:08]} ({Much worse is} 48. Kh2 Qd4 49. Qxd4+ cxd4 $15) 48... Qb2+ {[%emt 0:00:15]} 49. Kg1 {[%emt 0:00:04]} e5 {[%emt 0:02:45]} 50. fxe5+ {[%emt 0:01:12]} Qxe5 {[%emt 0:00:12]} 51. Qd2 {[%emt 0:01:01]} Nd6 {[%emt 0:00:36]} ({Black should play} 51... g5 $15) 52. Bd5 {[%emt 0:00:12]} g5 {[%emt 0:00:56]} 53. b4 {[%emt 0:00:38]} cxb4 {[%emt 0:00:30]} 54. Qxb4 {[%emt 0:00:15]} g4 {[%emt 0:00:38]} 55. hxg4 {[%emt 0:00:34] Active counter play!} ({But not} 55. Qd2 Kg6 $15) (55. Kf1 $11 {remains equal.}) 55... fxg4 $17 {[%emt 0:00:37]} 56. Qb1 {[%emt 0:00:38]} ({White should try} 56. Qa5) 56... g3 {[%emt 0:00:59]} 57. Qc1 {[%emt 0:00:37]} Nf5 {[%emt 0:00:20] Inhibits Qh6+. Hoping for ...Qe3+.} 58. Bf3 $2 {[%emt 0:00:30][%mdl 8192] [#]} (58. Kh1 $17) 58... Qe3+ $1 $19 {[%emt 0:02:57]} 59. Qxe3 {[%emt 0:00:08]} Nxe3 {[%emt 0:00:06] KB-KN} 60. c5 {[%emt 0:00:21]} Ke6 {[%emt 0:00:28]} (60... a5 $142 61. Bb7 Ke6) 61. Be4 {[%emt 0:00:39]} a5 {[%emt 0:00:50]} 62. Bb7 {[%emt 0:00:26]} Ke5 {[%emt 0:00:42] Strongly threatening ...Nd1.} 63. Bf3 {[%emt 0:00:17]} Ke6 {[%emt 0:00:47]} 64. Bb7 {[%emt 0:00:16]} Nd5 {[%emt 0:00:32]} 65. Kf1 {[%emt 0:00:28]} Nf4 {[%emt 0:00:28]} 66. Bf3 {[%emt 0:00:56] [#]} Nd3 $1 {[%emt 0:00:20]} 67. c6 {[%emt 0:00:21]} Ne5 $2 {[%emt 0:00:45]} (67... Nc5 $19 68. Ke2 Kd6) 68. Be4 {[%emt 0:00:25] The position is equal.} Kd6 {[%emt 0:00:14]} 69. Ke2 {[%emt 0:00:24]} Nxc6 {[%emt 0:00:14]} 70. Kf3 $1 {[%emt 0:00:57]} Nd4+ {[%emt 0:00:23]} 71. Kg4 {[%emt 0:00:21]} Ke5 {[%emt 0:00:18]} 72. Bb7 {[%emt 0:00:19]} Nf5 {[%emt 0:01:02]} 73. Bc8 {[%emt 0:00:28]} Ne3+ {[%emt 0:00:16]} 74. Kxh4 {[%emt 0:00:27]} Nxg2+ {[%emt 0:01:01]} 75. Kxg3 {[%emt 0:00:03]} Ne3 {[%emt 0:00:16] White happily takes the draw.  Weighted Error Value: White=0.28 (precise) /Black=0.16 (very precise)} 1/2-1/2

[Event "Uppsala GM June 2022"]
[Site "Uppsala"]
[Date "2022.06.17"]
[Round "6.2"]
[White "Roshka, Yevgeniy"]
[Black "Von Bahr, Oskar"]
[Result "1-0"]
[ECO "E60"]
[WhiteElo "2468"]
[BlackElo "2373"]
[Annotator "TA"]
[PlyCount "85"]
[EventDate "2022.06.09"]
[EventType "tourn"]
[EventCountry "SWE"]
[SourceTitle "playchess.com"]
[Source "ChessBase"]
[SourceQuality "1"]
[TimeControl "5400+30"]

{[%evp 9,85,32,21,12,15,0,0,0,10,30,26,0,0,0,0,0,0,3,77,3,33,12,14,17,14,10,10,11,9,8,13,0,14,0,0,-36,0,0,0,0,0,0,62,62,91,87,87,87,94,95,234,226,210,195,215,214,362,366,365,354,372,360,485,477,383,363,29961,29967,29967,29967,29976,29977,29982,29983,29983,29984,29982,29983]} 1. d4 {[%emt 0:00:02]} Nf6 {[%emt 0:00:06]} 2. c4 {[%emt 0:00:03]} g6 {[%emt 0:00:17]} 3. h4 {[%emt 0:00:03]} c5 {[%emt 0:00:14]} 4. d5 {[%emt 0:00:01]} b5 {[%emt 0:00:09]} 5. cxb5 {[%emt 0:00:04]} a6 {[%emt 0:00:04]} 6. e3 {[%emt 0:00:03] E60: King's Indian: Unusual lines and Fianchetto Variation without Nc3.} Bg7 {[%emt 0:00:58]} 7. Nc3 {[%emt 0:00:12]} O-O {[%emt 0:00:48]} 8. Nf3 {[%emt 0:00:25] [#] The position is equal.} axb5 $146 {[%emt 0:03:56]} ({Predecessor:} 8... d6 9. a4 Bg4 10. Ra3 axb5 11. Bxb5 Na6 12. e4 Nb4 13. Be2 Nd7 14. O-O Qb6 {0-1 (47) Grischuk,A (2766)-Vachier Lagrave,M (2775) Riga 2019}) 9. Bxb5 {[%emt 0:00:17]} Ne4 {[%emt 0:01:09]} 10. Nxe4 {[%emt 0:04:07]} Qa5+ {[%emt 1:27:49]} 11. Nc3 {[%emt 0:16:16]} Bxc3+ {[%emt 0:00:00][%mdl 64] [#] Remove Defender} 12. bxc3 {[%emt 0:00:01]} Qxb5 {[%emt 0:00:00]} 13. h5 {[%emt 0:00:15]} Ra4 {[%emt 0:00:00]} (13... Qc4 $11) 14. c4 {[%emt 0:12:49]} (14. hxg6 $16 fxg6 15. Ng5) 14... Qxc4 {[%emt 0:00:00]} (14... Rxc4 $5 {[%cal Rd7d6]} 15. a4 Qb6 $14) 15. Rh4 {[%emt 0:01:08]} Qc3+ {[%emt 0:00:00]} 16. Bd2 {[%emt 0:01:01]} Rxh4 {[%emt 0:00:00]} 17. Bxc3 {[%emt 0:00:02]} Rh1+ {[%emt 0:00:00]} 18. Kd2 {[%emt 0:00:01]} Rxd1+ {[%emt 0:00:00]} 19. Rxd1 {[%emt 0:00:02]} d6 {[%emt 0:00:00]} 20. Rb1 {[%emt 0:03:27]} Ba6 {[%emt 0:00:00]} 21. e4 {[%emt 0:06:56]} Nd7 {[%emt 0:00:00] Prevents Rb6.} 22. Ke3 {[%emt 0:09:22]} Rb8 {[%emt 0:00:00]} 23. Rxb8+ {[%emt 0:04:47]} Nxb8 {[%emt 0:00:00]} 24. hxg6 {[%emt 0:00:03]} hxg6 $11 {[%emt 0:00:00][%mdl 4096] Endgame KBN-KBN} 25. a4 {[%emt 0:00:21]} f5 {[%emt 0:00:00]} ({Black should try} 25... f6 $11) 26. Nh4 $14 {[%emt 0:09:04]} fxe4 {[%emt 0:00:00]} 27. Nxg6 {[%emt 0:01:44]} Kf7 {[%emt 0:00:00]} 28. Nf4 {[%emt 0:00:01] White is more active.} Bb7 {[%emt 0:00:00]} 29. Kxe4 {[%emt 0:05:56]} Nd7 {[%emt 0:00:00] [#] Loses the game.} (29... Bc8 $16) 30. Ne6 $1 $18 {[%emt 0:02:52] Black must now prevent Nd8+.} Ba6 {[%emt 0:00:00]} 31. a5 {[%emt 0:00:57] Strongly threatening Nc7.} Bf1 {[%emt 0:00:00]} 32. g4 {[%emt 0:00:11]} Bg2+ {[%emt 0:00:00]} (32... Nb8 {was necessary.} 33. g5 Na6) 33. f3 {[%emt 0:00:03]} Bf1 {[%emt 0:00:00]} 34. Nf4 {[%emt 0:05:54]} Ba6 {[%emt 0:01:11]} 35. Kf5 {[%emt 0:02:43]} c4 {[%emt 0:04:30]} 36. Ne6 {[%emt 0:02:26]} Bc8 {[%emt 0:00:56]} 37. Ke4 {[%emt 0:00:07] aiming for f4.} Nc5+ $2 {[%emt 0:01:22]} (37... Nf8 $18 38. Nc7 Nd7) 38. Nxc5 {[%emt 0:00:06] White mates.} dxc5 {[%emt 0:00:01]} 39. Ke5 {[%emt 0:00:18]} Bb7 {[%emt 0:00:57]} 40. f4 {[%emt 0:00:08][%cal Bf3f4,Bf4f5][%mdl 32]} Bc8 {[%emt 0:00:30]} 41. f5 {[%emt 0:00:24]} Bb7 {[%emt 0:00:58]} 42. d6 {[%emt 0:00:58]} exd6+ {[%emt 0:00:11]} 43. Kxd6 {[%emt 0:00:02] Weighted Error Value: White=0.07 (flawless) /Black=0.44} 1-0